Cogmind - Beta 16 @@@ ROGUE MODE // 2025.11.22 @ 21:50:19 Player: ChromeKnight Result: Self-destructed Performance ------------- Evolutions (5) 2500 Regions Visited (8) 1600 Robots Destroyed (58) 290 Value Destroyed (1877) 1877 Prototype IDs (2) 40 Alien Tech Used (0) 0 Bonus (500) 500 TOTAL SCORE: 6807 Bonus ------- Entered DSFs 500 Cogmind --------- Core Integrity 610/1000 Matter 0/300 Energy 480/480 System Corruption 0% Temperature Cool (0) Movement Core (1300) Ox25 Location -5/DSF Parts ------- > --- POWER (2) -------- Reinforced Deuterium Engine Reinforced Deuterium Engine > --- PROPULSION (6) --- (None) > --- UTILITY (6) ------ Large Storage Unit Improved Sensor Array Improved Targeting Computer Graphene Brace > --- WEAPON (3) ------- Magnetic Acceleration Cannon Enhanced Gauss Cannon Enhanced Gauss Cannon > --- INVENTORY (15) --- Transmission Jammer Improved Medium Armor Plating Improved Medium Armor Plating Medium Reactive Plating Medium Reactive Plating Medium Reactive Plating Gauss Cannon Gauss Cannon Magnetic Acceleration Cannon Magnetic Acceleration Cannon Enhanced Gauss Cannon Enhanced Gauss Cannon Smartbomb Launcher Peak State ------------ > --- POWER ------------ Reinforced Deuterium Engine Reinforced Deuterium Engine > --- PROPULSION ------- Light Treads Armored Treads Medium Treads Xenon Bombardment Thruster > --- UTILITY ---------- Large Storage Unit Improved Sensor Array Improved Targeting Computer Improved Weapon Shielding Improved Medium Armor Plating Graphene Brace > --- WEAPON ----------- Enhanced Gauss Cannon Enhanced Gauss Cannon Enhanced Gauss Cannon > --- INVENTORY -------- Transmission Jammer Improved Medium Armor Plating Improved Medium Armor Plating Medium Reactive Plating Medium Reactive Plating Medium Reactive Plating Gauss Cannon Gauss Cannon Magnetic Acceleration Cannon Magnetic Acceleration Cannon Magnetic Acceleration Cannon Enhanced Gauss Cannon Smartbomb Launcher [Rating: 64] Favorites ----------- Power Reinforced Deuterium Engine Engine Reinforced Deuterium Engine Power Core Micro Nuclear Core Propulsion Light Treads Treads Light Treads Flight Unit Xenon Bombardment Thruster Utility Large Storage Unit Device Improved Sensor Array Storage Large Storage Unit Processor Improved Targeting Computer Protection Medium Reactive Plating Weapon Improved Assault Rifle Ballistic Gun Improved Assault Rifle Ballistic Cannon Magnetic Acceleration Cannon Launcher Grenade Launcher Build | -11 -10 -10 -10 -8 -7 -6 -5 -5 ------- Run | Yrd Mat Min Sub Mat Fac Fac Fac DSF Slots Evolved 10 | . . . . 4 2 2 2 . Power 1 | . . . . . . . 1 . Propulsion 4 | . . . . 2 1 . 1 . Utility 4 | . . . . 1 1 2 . . Weapon 1 | . . . . 1 . . . . Parts Attached 54 | 6 1 2 1 23 10 6 1 4 Power 5 | 1 . . . 2 1 . 1 . Engine 4 | 1 . . . 1 1 . 1 . Core 1 | . . . . 1 . . . . Reactor . | . . . . . . . . . Propulsion 13 | 2 . . 1 8 2 . . . Treads 12 | 2 . . 1 8 1 . . . Leg . | . . . . . . . . . Wheel . | . . . . . . . . . Hover . | . . . . . . . . . Flight 1 | . . . . . 1 . . . Utility 13 | 1 1 . . 3 4 3 . 1 Device 3 | . . . . . 1 1 . 1 Storage 2 | 1 1 . . . . . . . Processor 1 | . . . . . 1 . . . Hackware . | . . . . . . . . . Protection 7 | . . . . 3 2 2 . . Artifact . | . . . . . . . . . Weapon 23 | 2 . 2 . 10 3 3 . 3 Energy Gun . | . . . . . . . . . Energy Cannon . | . . . . . . . . . Ballistic Gun 10 | 2 . . . 8 . . . . Ballistic Cannon 10 | . . . . 1 3 3 . 3 Launcher 3 | . . 2 . 1 . . . . Special Weapon . | . . . . . . . . . Impact Weapon . | . . . . . . . . . Slashing Weapon . | . . . . . . . . . Piercing Weapon . | . . . . . . . . . Special Melee Weapon . | . . . . . . . . . Unidentified Prototypes 2 | . . . . 2 . . . . Parts Lost 14 | . . . 2 5 . . . 7 Power 1 | . . . . 1 . . . . Propulsion 8 | . . . 1 2 . . . 5 Utility 3 | . . . . 1 . . . 2 Weapon 2 | . . . 1 1 . . . . Highest Loss Streak 6 | . . . 2 2 . . . 6 To Critical Strikes . | . . . . . . . . . Average Backups 11 | . 2 4 6 13 14 14 14 13 Power 1 | . . . . 3 1 1 . . Propulsion 2 | . . 2 2 4 3 . . . Utility 3 | . . . . 2 7 7 7 6 Weapon 4 | . 1 2 4 3 3 6 7 6 Tool/Special . | . . . . . . . . . Unused Backups 33 | . . . . 11 7 3 . 12 Power 5 | . . . . 4 1 . . . Propulsion 7 | . . . . 4 1 2 . . Utility 12 | . . . . 1 4 1 . 6 Weapon 9 | . . . . 2 1 . . 6 Tool/Special . | . . . . . . . . . Average Slot Usage (%) 88 | . 85 85 81 86 89 99 94 86 Engine 8 | . 14 14 14 8 3 6 11 11 Treads 29 | . 28 28 26 34 29 26 23 17 Flight 2 | . . . . . 5 6 5 4 Device 1 | . . . . . . 5 5 6 Storage 9 | . 14 14 14 9 7 6 5 5 Processor 2 | . . . . . 5 6 5 5 Protection 8 | . . . . 7 8 19 17 14 Ballistic Gun 13 | . 28 26 . 20 20 . . . Ballistic Cannon 6 | . . . . 2 2 20 17 17 Launcher 3 | . . 1 26 3 . . . . Peak Build Rating 64 | 6 7 6 7 34 45 55 58 64 Average Rating 28 | 4 6 6 5 20 41 54 58 59 On Entrance 23 | . 6 6 6 6 33 45 55 58 Avg Prop Armor Cover (%) 1 | . . . . . 1 1 . 1 Naked Turns . | . . . . . . . . . Heaviest Build 107 | 12 27 31 31 55 79 89 104 107 Greatest Support 88 | 40 40 40 40 80 88 88 88 88 Greatest Overweight (x) 1 | . . . 1 . . 1 1 1 Average Overweight (x) . | . . . . . . . 1 1 Largest Inventory Capacity 15 | 8 15 15 15 15 15 15 15 15 Average Capacity 14 | 7 9 15 15 15 15 15 15 15 Most Carried 15 | . 4 5 8 15 15 15 14 15 Average Carried 11 | . 2 4 6 13 14 14 14 14 Final Capacity 15 | 8 15 15 15 15 15 15 15 15 Final Carried 15 | . 4 5 7 15 15 15 14 14 Class Distribution -------------------- 28% | Scavenger-Tank 27% | Tank 25% | Mutant 11% | Scavenger-Gunner 6% | Gunner Dominant Class ---------------- Mutant | -10/Materials Mutant | -10/Mines Mutant | -10/Subcaves Scavenger-Tank | -8/Materials Scavenger-Gunner | -7/Factory Tank | -6/Factory Tank | -5/Factory Tank | -5/DSF Resources | -11 -10 -10 -10 -8 -7 -6 -5 -5 ----------- Run | Yrd Mat Min Sub Mat Fac Fac Fac DSF Matter Collected 2040 | 226 84 14 120 974 156 348 . 118 Remotely . | . . . . . . . . . Salvage Created 1972 | . 228 . 78 1131 136 276 . 123 Parts 129 | . 15 . 3 69 7 24 . 11 Haulers Intercepted 4 | . 1 . . 3 . . . . Recyclers Shooed 3 | . 2 . . 1 . . . . Parts Field Recycled . | . . . . . . . . . Retrieved Matter . | . . . . . . . . . Parts Self-Destructed 11 | . . . 11 . . . . . Prevented . | . . . . . . . . . Parts Restored . | . . . . . . . . . Kills | -11 -10 -10 -10 -8 -7 -6 -5 -5 ------- Run | Yrd Mat Min Sub Mat Fac Fac Fac DSF Combat Hostiles Destroyed 42 | . 6 . 4 19 3 5 . 5 Guns 23 | . 6 . . 14 3 . . . Cannons 12 | . . . . 2 . 5 . 5 AOE 7 | . . . 4 3 . . . . Classes Destroyed 16 | . 3 . 1 9 . 2 . 1 Worker 2 | . . . . 1 . 1 . . Tunneler 1 | . . . . 1 . . . . Hauler 4 | . 1 . . 3 . . . . Recycler 3 | . . . . 2 . 1 . . Mechanic 2 | . . . . 1 . 1 . . Operator 1 | . . . . . . 1 . . Watcher 3 | . . . . 2 . 1 . . Swarmer 6 | . 2 . . 4 . . . . Cutter 5 | . . . . 2 . . . 3 Grunt 15 | . 4 . 1 7 3 . . . Brawler 1 | . . . . 1 . . . . Sentry 5 | . . . . 4 . 1 . . Specialist 1 | . . . . . . . . 1 Programmer 4 | . . . . . . 4 . . Heavy 2 | . . . . 1 . . . 1 Subdweller 3 | . . . 3 . . . . . Best Kill Streak 7 | . 3 . 1 7 2 2 . 4 Combat Bots Only 5 | . 3 . 1 5 2 2 . 4 Max Kills in Single Turn 2 | . 1 . 1 2 1 1 . 1 Gunslinging . | . . . . . . . . . Exploded 2 | . . . 1 2 . . . . Melee . | . . . . . . . . . Uniques/NPCs Destroyed . | . . . . . . . . . Combat | -11 -10 -10 -10 -8 -7 -6 -5 -5 -------- Run | Yrd Mat Min Sub Mat Fac Fac Fac DSF Hostile Shots Fired 225 | . 13 10 17 86 7 39 . 53 Missed 56 | . 5 . 6 19 2 11 . 13 Hits 169 | . 8 10 11 67 5 28 . 40 Melee 16 | . . . . 2 . . . 14 Projectile 153 | . 8 10 11 65 5 28 . 26 AOE 28 | . . 12 1 2 . . . 13 Critical Strikes 14 | . . . . 3 . 2 . 9 Actively Blocked 7 | . . . . . . . . 7 Damage Taken 4480 | . 81 318 310 1730 73 320 . 1648 Core 841 | . 11 125 87 207 13 8 . 390 Absorbed by Shields . | . . . . . . . . . Redirected to Shielding 103 | . . . . . . 40 . 63 Ignored by Resistances 208 | . . . . . . 18 . 190 Core Remaining (%) 73 | 100 . . 10 62 98 99 . . Volleys Fired 163 | . 20 7 10 79 7 14 . 26 Largest 3 | . 2 2 2 3 3 3 . 3 Hottest 141 | . 40 40 60 73 71 132 . 141 Shots Fired 373 | . 40 14 18 187 21 43 . 50 Gun 252 | . 40 14 . 177 21 . . . Cannon 100 | . . . . 7 . 43 . 50 Launcher 21 | . . . 18 3 . . . . Special . | . . . . . . . . . Kinetic 352 | . 40 14 . 184 21 43 . 50 Thermal . | . . . . . . . . . Explosive 21 | . . . 18 3 . . . . Electromagnetic . | . . . . . . . . . Robot Hit Streak 16 | . 9 11 3 16 8 11 . 11 Robot Miss Streak 4 | . 2 2 1 4 3 3 . 2 Penetration Max . | . . . . . . . . . Secondary Targets 1 | . . . . 1 . . . . Max Gunslinging Chain 1 | . . . . 1 . . . . Shots Hit Robots 254 | . 31 11 6 130 16 24 . 36 Core Hits 113 | . 17 5 8 55 8 11 . 9 Critical Kills . | . . . . . . . . . Critical Parts Destroyed 1 | . . . . 1 . . . . Critical Strikes 10 | . . . . 3 . 5 . 2 Destroy 1 | . . . . 1 . . . . Blast 9 | . . . . 2 . 5 . 2 Melee Attacks . | . . . . . . . . . Impact . | . . . . . . . . . Slashing . | . . . . . . . . . Piercing . | . . . . . . . . . Sneak Attacks . | . . . . . . . . . Combat Hostiles . | . . . . . . . . . Follow-up Attacks . | . . . . . . . . . Damage Inflicted 5635 | . 253 85 656 2195 247 944 . 1255 Guns 2502 | . 253 85 . 1917 247 . . . Cannons 2227 | . . . . 98 . 880 . 1249 Explosions 828 | . . . 656 172 . . . . Melee . | . . . . . . . . . Ramming 78 | . . . . 8 . 64 . 6 Kinetic 4729 | . 253 85 . 2015 247 880 . 1249 Thermal . | . . . . . . . . . Explosive 828 | . . . 656 172 . . . . Electromagnetic . | . . . . . . . . . Impact . | . . . . . . . . . Slashing . | . . . . . . . . . Piercing . | . . . . . . . . . Highest Corruption 8 | . . . . 8 . 4 . . Average Corruption 3 | . . . . 3 . 3 . . Corruption Purged . | . . . . . . . . . Corruption Blocked . | . . . . . . . . . Effects 37 | . . . . 29 . 8 . . Message Errors 3 | . . . . 2 . 1 . . Matter Fused 9 | . . . . 6 . 3 . . Heat Flow Errors 2 | . . . . 1 . 1 . . Energy Discharges 7 | . . . . 6 . 1 . . Parts Rejected 1 | . . . . 1 . . . . Parts Fused 1 | . . . . 1 . . . . Data Loss (minor) 5 | . . . . 5 . . . . Data Loss (major) 6 | . . . . 5 . 1 . . Misfires 2 | . . . . 1 . 1 . . Alerts 1 | . . . . 1 . . . . Overload Shots . | . . . . . . . . . Overflow Damage 76 | . . . 8 . . 61 . 7 Projectiles 68 | . . . . . . 61 . 7 Explosions 8 | . . . 8 . . . . . Melee . | . . . . . . . . . Knockbacks 7 | . . . . . . 5 . 2 Impact . | . . . . . . . . . Kinetic 7 | . . . . . . 5 . 2 Secondary . | . . . . . . . . . Self-Inflicted Damage 86 | . . . 86 . . . . . Shots 3 | . . . 3 . . . . . Rammed 9 | . . . . 3 . 5 . 1 Targets Rammed 11 | . . . . 4 . 6 . 1 Kicked . | . . . . . . . . . Crushed 2 | . . . . 1 . 1 . . Highest Temperature 207 | . 12 . . 201 176 196 . 207 Average Temperature 53 | . 6 . . 40 68 64 . 83 Received Heat Transfer 468 | . 42 . 12 369 45 . . . Effects 3 | . . . . 3 . . . . Interference 3 | . . . . 3 . . . . Siege Activations . | . . . . . . . . . Martial Activations . | . . . . . . . . . Shielding Activations . | . . . . . . . . . Robots Disrupted . | . . . . . . . . . Combat Hostiles . | . . . . . . . . . Robots Corrupted . | . . . . . . . . . Combat Hostiles . | . . . . . . . . . Parts Fried . | . . . . . . . . . Impact Corruptions . | . . . . . . . . . Robots Melted . | . . . . . . . . . Combat Hostiles . | . . . . . . . . . Parts Melted . | . . . . . . . . . Heat Transferred . | . . . . . . . . . Parts Sabotaged . | . . . . . . . . . Parts Stolen . | . . . . . . . . . Parts Stripped . | . . . . . . . . . Power Chain Reactions . | . . . . . . . . . Alert | -11 -10 -10 -10 -8 -7 -6 -5 -5 ------- Run | Yrd Mat Min Sub Mat Fac Fac Fac DSF Maximum Alert Level . | . . . . . . . . . Low Security (%) 100 | 100 100 100 . 100 100 100 100 100 Level 1 . | . . . . . . . . . Level 2 . | . . . . . . . . . Level 3 . | . . . . . . . . . Level 4 . | . . . . . . . . . Level 5 . | . . . . . . . . . High Security . | . . . . . . . . . Max Security . | . . . . . . . . . Peak Influence 186 | . 95 12 . 186 77 45 9 101 Initial 77 | . . 12 . . 77 . 9 3 Average 39 | . 45 1 . 69 22 8 7 32 Influence Increases 1232 | . 156 . 20 637 70 196 5 148 Destroy 0b10 Robot/C 780 | . 120 . 20 380 60 100 . 100 Destroy 0b10 Robot/NC 80 | . 5 . . 50 . 25 . . Destroy Leader 164 | . 12 . . 100 10 32 . 10 Successful Hack 17 | . 4 . . 8 . . 5 . Disable Machine 60 | . . . . 15 . 30 . 15 Destroy Structure 26 | . . . . 9 . 9 . 8 Lose Combat Pursuer 105 | . 15 . . 75 . . . 15 Influence Decreases 1151 | . 124 32 20 465 242 177 19 72 Entered New Map 127 | . . 20 . . 95 . 10 2 Time Decay 904 | . 124 12 20 415 147 177 9 . Lost Part 120 | . . . . 50 . . . 70 Squads Dispatched 8 | . 1 . . 2 2 1 . 2 Investigation 2 | . 1 . . . 1 . . . Extermination . | . . . . . . . . . Reinforcement 6 | . . . . 2 1 1 . 2 Assault . | . . . . . . . . . Garrison . | . . . . . . . . . Intercept . | . . . . . . . . . Searches Triggered . | . . . . . . . . . Construction Impeded . | . . . . . . . . . Haulers Reinforced 1 | . . . . . . 1 . . Active Scanning Responses . | . . . . . . . . . Cargo Convoy Interrupts . | . . . . . . . . . Stealth | -11 -10 -10 -10 -8 -7 -6 -5 -5 --------- Run | Yrd Mat Min Sub Mat Fac Fac Fac DSF Distress Signals 4 | . . . . 3 . 1 . . Communications Jammed . | . . . . . . . . . Distress Signals . | . . . . . . . . . Times Spotted 67 | . 9 1 4 31 5 9 . 8 Peak Tracking Total 7 | . 2 1 2 7 3 2 . 4 Tactical Retreats 5 | . 1 . . 3 . . . 1 Traps | -11 -10 -10 -10 -8 -7 -6 -5 -5 ------- Run | Yrd Mat Min Sub Mat Fac Fac Fac DSF Traps Triggered 5 | . 1 . . 3 . . . 1 Indirectly . | . . . . . . . . . Trap Hack Attempts . | . . . . . . . . . Triggered . | . . . . . . . . . Disarmed . | . . . . . . . . . Reprogrammed . | . . . . . . . . . Reused . | . . . . . . . . . Traps Extracted . | . . . . . . . . . Installed . | . . . . . . . . . Triggered . | . . . . . . . . . Machines | -11 -10 -10 -10 -8 -7 -6 -5 -5 ---------- Run | Yrd Mat Min Sub Mat Fac Fac Fac DSF Machines Disabled 4 | . . . . 1 . 2 . 1 Max in Single Turn 1 | . . . . 1 . 1 . 1 Garrison Access 2 | . . . . 1 . 1 . . Machines Repaired . | . . . . . . . . . Machines Dismantled . | . . . . . . . . . Machines Sabotaged . | . . . . . . . . . Overloaded Fab Kills . | . . . . . . . . . Hacking | -11 -10 -10 -10 -8 -7 -6 -5 -5 --------- Run | Yrd Mat Min Sub Mat Fac Fac Fac DSF Machines Accessed 9 | . 2 . . 4 1 1 1 . Terminals 7 | . 2 . . 3 1 . 1 . Fabricators . | . . . . . . . . . Repair Stations . | . . . . . . . . . Recycling Units . | . . . . . . . . . Scanalyzers . | . . . . . . . . . Garrison Access 2 | . . . . 1 . 1 . . Total Hacks 17 | . 3 . . 11 1 1 1 . Successful 6 | . 2 . . 2 . 1 1 . Failed 11 | . 1 . . 9 1 . . . Catastrophic 2 | . . . . 1 1 . . . Database Lockouts . | . . . . . . . . . Manual 12 | . 3 . . 8 1 . . . Terminals 13 | . 3 . . 8 1 . 1 . Fabricators . | . . . . . . . . . Repair Stations . | . . . . . . . . . Recycling Units . | . . . . . . . . . Scanalyzers . | . . . . . . . . . Garrison Access 4 | . . . . 3 . 1 . . Terminal Hacks 2 | . . . . 1 . . 1 . Open DSF 1 | . . . . . . . 1 . Branch Access Points 1 | . . . . 1 . . . . Fabricator Hacks . | . . . . . . . . . Repair Station Hacks . | . . . . . . . . . Recycling Unit Hacks . | . . . . . . . . . Scanalyzer . | . . . . . . . . . Garrison Access Hacks 2 | . . . . 1 . 1 . . Seal Access 2 | . . . . 1 . 1 . . Unauthorized Hacks 2 | . 2 . . . . . . . Terminals 2 | . 2 . . . . . . . Skim 2 | . 2 . . . . . . . Fabricators . | . . . . . . . . . Repair Stations . | . . . . . . . . . Recycling Units . | . . . . . . . . . Scanalyzers . | . . . . . . . . . Garrison Access . | . . . . . . . . . Data Cores Recovered 1 | . . . . . . 1 . . Used . | . . . . . . . . . Hacking Detections 6 | . 1 . . 3 1 . 1 . Full Trace Events 1 | . . . . . 1 . . . Feedback Events . | . . . . . . . . . Feedback Blocked . | . . . . . . . . . Robot Schematics Acquired . | . . . . . . . . . Robots Built . | . . . . . . . . . Authchips . | . . . . . . . . . Time . | . . . . . . . . . Total Robot Build Rating . | . . . . . . . . . Part Schematics Acquired . | . . . . . . . . . Parts Built . | . . . . . . . . . Authchips . | . . . . . . . . . Time . | . . . . . . . . . Total Part Build Rating . | . . . . . . . . . Part Studies Acquired . | . . . . . . . . . Parts Repaired . | . . . . . . . . . Time . | . . . . . . . . . Parts Recycled . | . . . . . . . . . Recycled Matter . | . . . . . . . . . Retrieved Matter . | . . . . . . . . . Retrieved Components . | . . . . . . . . . Parts Scanalyzed . | . . . . . . . . . Part Schematics Acquired . | . . . . . . . . . Parts Damaged . | . . . . . . . . . Bothacking | -11 -10 -10 -10 -8 -7 -6 -5 -5 ------------ Run | Yrd Mat Min Sub Mat Fac Fac Fac DSF Used RIF Installer . | . . . . . . . . . Robots Hacked . | . . . . . . . . . Non-combat . | . . . . . . . . . Combat . | . . . . . . . . . Robot Hacks Applied . | . . . . . . . . . Relay Couplers Released . | . . . . . . . . . Fabnet Peak Effective % . | . . . . . . . . . Robots Rewired . | . . . . . . . . . Allies Hacked . | . . . . . . . . . Hacks Repelled . | . . . . . . . . . Allies | -11 -10 -10 -10 -8 -7 -6 -5 -5 -------- Run | Yrd Mat Min Sub Mat Fac Fac Fac DSF Total Allies . | . . . . . . . . . Largest Group . | . . . . . . . . . Highest-Rated Group . | . . . . . . . . . Highest-Rated Ally . | . . . . . . . . . Total Orders . | . . . . . . . . . Ally Attacks . | . . . . . . . . . Total Damage . | . . . . . . . . . Kills . | . . . . . . . . . Allies Corrupted . | . . . . . . . . . Allies Melted . | . . . . . . . . . Intel | -11 -10 -10 -10 -8 -7 -6 -5 -5 ------- Run | Yrd Mat Min Sub Mat Fac Fac Fac DSF Active Infowar (turns) 1094 | . . . . . . 879 23 192 Sensors 1094 | . . . . . . 879 23 192 Robot Analysis Total . | . . . . . . . . . Derelict Logs Recovered . | . . . . . . . . . Drone Launches . | . . . . . . . . . Drone Recoveries . | . . . . . . . . . Exploration | -11 -10 -10 -10 -8 -7 -6 -5 -5 ------------- Run | Yrd Mat Min Sub Mat Fac Fac Fac DSF Turns Passed 4262 | 64 328 248 434 1591 484 898 23 192 Spaces Moved 1975 | 41 154 93 239 787 261 351 10 39 Core 9 | 9 . . . . . . . . Treads 1966 | 32 154 93 239 787 261 351 10 39 Legs . | . . . . . . . . . Wheels . | . . . . . . . . . Hover . | . . . . . . . . . Flight . | . . . . . . . . . Fastest Speed 50 | 50 160 160 160 160 162 162 242 240 Average Speed 176 | 135 160 160 167 160 162 236 242 242 Slowest Speed 243 | 160 160 160 240 163 163 242 242 243 Overloaded Moves . | . . . . . . . . . Propulsion Burnouts . | . . . . . . . . . Robots Hopped . | . . . . . . . . . Potential Cave-ins . | . . . . . . . . . Cave-ins Triggered 1 | . . . . 1 . . . . Exploration Rate (%) 19 | 4 34 16 22 54 7 7 1 34 Regions Visited 8 Branch Regions 2 Pre-discovered Areas . | . . . . . . . . . Known Exits Taken 1 | . . . . . . . 1 . Unknown Exits Taken 7 | 1 1 1 1 1 1 1 . . Scrap Searched . | . . . . . . . . . Spaces Dug . | . . . . . . . . . Terrain Destroyed 92 | . . . 72 7 . 9 . 4 Melee . | . . . . . . . . . Projectile 14 | . . . . 1 . 9 . 4 AOE 78 | . . . 72 6 . . . . Terrain Rammed . | . . . . . . . . . Walls Destroyed . | . . . . . . . . . Machines Disabled . | . . . . . . . . . Actions | -11 -10 -10 -10 -8 -7 -6 -5 -5 --------- Run | Yrd Mat Min Sub Mat Fac Fac Fac DSF Total 2466 | 46 204 180 254 983 314 382 10 93 Wait 159 | . 25 78 2 30 9 . . 15 Move 1967 | 40 153 92 238 786 260 350 9 39 Hop . | . . . . . . . . . Pick Up 50 | . 4 1 3 27 11 2 . 2 Fast Attach 28 | 6 1 . . 13 8 . . . Attach 13 | . . . 1 6 2 2 1 1 Detach . | . . . . . . . . . Swap 23 | . . 2 . 12 1 4 . 4 Drop 52 | . 1 . . 26 16 4 . 5 Fire 163 | . 20 7 10 79 7 14 . 26 Melee . | . . . . . . . . . Ram . | . . . . . . . . . Kick . | . . . . . . . . . Crush 11 | . . . . 4 . 6 . 1 Escape Stasis . | . . . . . . . . . Rewire . | . . . . . . . . . Trap . | . . . . . . . . . Miscellaneous . | . . . . . . . . . Route ------- -11/Scrapyard -10/Materials (discovered 3 exits: [*Mat] / [*Min x2]) -10/Mines (discovered 2 exits: [*Mat] / [*Sub]) -10/Subcaves -8/Materials (discovered 2 exits: *Fac x2) -7/Factory -6/Factory -5/Factory -5/DSF History --------- Turn | Location | Event 4 | -11/Scrapyard | Discovered new exit (range 14) 65 | -11/Scrapyard | Entered Materials 65 | -10/Materials | Discovered new exit (range 7) 236 | -10/Materials | Discovered new exit (range 12) 323 | -10/Materials | Discovered new exit (range 16) 324 | -10/Materials | Build established: Mutant 393 | -10/Materials | Entered Mines 403 | -10/Mines | Met a Derelict bent on vengeance 433 | -10/Mines | Discovered new exit (range 5) 526 | -10/Mines | Discovered new exit (range 8) 546 | -10/Mines | YI-UF0 nonchalantly dropped a Grenade Launcher on the ground 578 | -10/Mines | Core integrity fell below 50% 641 | -10/Mines | Entered Subcaves 750 | -10/Subcaves | Core integrity fell below 20% 753 | -10/Subcaves | Ambushed by Subdweller buried in earth 949 | -10/Subcaves | Shifting Twisted Machinery released Flamer 1047 | -10/Subcaves | Discovered new exit (range 9) 1075 | -10/Subcaves | Entered Materials 1075 | -8/Materials | Evolved 4 slots: Propulsion x2, Utility x1, Weapon x1 1467 | -8/Materials | Discovered new exit (range 10) 1854 | -8/Materials | Build established: Scavenger-Tank 2521 | -8/Materials | Discovered new exit (range 5) 2617 | -8/Materials | Crushed by falling debris 2666 | -8/Materials | Entered Factory 2666 | -7/Factory | Evolved 2 slots: Propulsion x1, Utility x1 2996 | -7/Factory | Discovered new exit (range 13) 3056 | -7/Factory | Build established: Scavenger-Gunner 3150 | -7/Factory | Entered another Factory area 3150 | -6/Factory | Evolved 2 slots: Utility x2 3271 | -6/Factory | Discovered new exit (range 16) 3373 | -6/Factory | Build established: Tank 4048 | -6/Factory | Entered another Factory area 4048 | -5/Factory | Evolved 2 slots: Power x1, Propulsion x1 4071 | -5/Factory | Identified exit to DSF 4071 | -5/Factory | Entered DSF 4081 | -5/DSF | Assembled infested the area 4135 | -5/DSF | Additional patrols routed to DSF 4263 | -5/DSF | Self-destructed Last Messages --------------- 04228_ Slammed into C-35 Carver. 04230_ Slug penetrates Wall. 04237_ C-35 Carver destroyed. 04239_ Acquired 29 matter. 04241_ C-35 Carver destroyed. 04242_ Acquired 18 matter. 04249_ Xenon Bombardment Thruster destroyed. 04252_ Med. Treads destroyed. 04252_ Imp. Medium Armor Plating destroyed. 04253_ The unstable cave ceiling collapses. 04253_ H-71 Marshal destroyed. 04257_ The unstable cave ceiling collapses. 04258_ D-63 Destroyer Cmb. Gravmag System blasted off. 04258_ D-63 Destroyer knocked back. 04258_ Slug penetrates D-63 Destroyer. 04260_ The unstable cave ceiling collapses. 04260_ Lgt. Treads destroyed. 04261_ The unstable cave ceiling collapses. 04261_ D-63 Destroyer knocked back. Map ----- +----------------------------------------------------+ | ????????????????????????????????? | | ????????????????????????????????? | | ????????????????????????????????? | | ??????????"#????????????????????? | | ?????????#"#????????????????????? | | ??????####"##???????????????????? | | ??????#"""""#?###??##???????????? | | ??????#"""""##]]# # !!!??????? | | ????"##"" % ??????? | | ????""""" ??????? | | ????###"" =## # ##??????????? | | ??????### ##???#???????????????? | | ???????##]%###??????????????????? | | ???????#]]] #??????????????????? | | ???????#]] #??????????????????? | | ???????## ###??????????????????? | | ???????# [[#??????????????????? | | ???????# [[#??????????????????? | | ???????# [[#??????????????????? | | ??????### ######??##???????????? | | ???#### ## # !!#???????????? | | ?### % %##A ??????? | | ?# %?????? | | ??# % d^ %%?????? | | ??# d ^%% ?????? | | ??# @ !! !!!%# ??????? | | ??# !!! !!! #??????????? | | ??# ### #??????????? | | ??## #???????!!?????????? | | ???# #??????????????????? | | ???### # ###??????????????????? | | ?????#######????????????????????? | | ????????????????????????????????? | | ????????????????????????????????? | | ????????????????????????????????? | | ????????????????????????????????? | | ????????????????????????????????? | | ????????????????????????????????? | | ????????????????????????????????? | | ????????????????????????????????? | | ????????????????????????????????? | | ????????????????????????????????? | | ????????????????????????????????? | | ????????????????????????????????? | | ????????????????????????????????? | | ????????????????????????????????? | | ????????????????????????????????? | | ????????????????????????????????? | | ????????????????????????????????? | | | +----------------------------------------------------+ Best States ------------- Heat Dissipation 40 Energy Generation 27 Energy Capacity 480 Matter Stores 300 Matter Capacity 300 Sight Range 16 Robot Scan Range 15 Terrain Scan Density 10 Armor Coverage 600 Resistance: KI 30 Weapon Shielding 66 Evasion (%) 40 Targeting Accuracy 6 Recoil Reduction 4 Item Schematics ----------------- None Robot Schematics ------------------ None Fabricated ------------ Nothing Repaired ---------- Nothing Studied --------- None Alien Tech Used ----------------- None Achievements -------------- None Challenges ------------ None Game ------ Seed SalvageLaunchArmor Manual? 0 Play Time 00:22:46 Cumulative 571.3 hours Start 2025.11.22 @ 00:12:12 End 2025.11.22 @ 21:50:19 Sessions 3 Manual Loads 0 Difficulty Rogue Special Mode None Game No. 908 Rogue 753 Adventurer 148 Explorer 7 Win Type - Total 27 Types 21/1/4/1/0/0/0/0/0/0 Lore% 81 Gallery% 84 Achievement% 69 Wizard Run 0 Options --------- Layout 1 ASCII 0 Keyboard 0 Movement Numpad Keybinds 0 Fullscreen 2 Font 24/Smallcaps Map View 50x40 Zoom Use 0% Tactical HUD 1 Map Filters NONE Filters NONE Steam 1 RUN: c0d2d85c-93bb-4c7b-a428-c60ff8eaad50